bitfinex/quotes_ETHUSD_20260110
["timestamp","ask_amount","ask_price","bid_price","bid_amount"]
[1768010098224,0.0008076,3089.1,3088.6,3.23770954]
[1768010101163,0.0008076,3089.1,3088.6,3.23870954]
[1768010101365,0.002,3088.8,3088.6,3.23870954]
[1768010102767,0.002,3088.8,3088.6,4.21570492]
[1768010102925,0.00080592,3089.4,3088.9,0.97699538]
[1768010103125,0.002,3089.6,3089.0,0.99056116]
[1768010103531,0.002,3089.6,3089.1,3.23718882]
[1768010104248,0.002,3089.6,3089.1,0.98975516]
[1768010107275,0.002,3089.6,3089.1,4.22692369]
[1768010108778,0.002,3089.6,3089.1,0.98975516]
[1768010109869,0.96269695,3089.6,3089.0,0.000806]
[1768010113779,0.96269695,3089.6,3089.3,0.001]
[1768010113946,0.96269695,3089.6,3089.0,0.000806]
[1768010113947,0.96069695,3089.4,3089.0,0.000806]
[1768010121382,0.96069695,3089.4,3088.7,0.00080768]
[1768010121383,0.96069695,3089.3,3088.7,0.00080768]
[1768010121550,3.23688756,3089.4,3088.7,0.00080768]
[1768010121551,0.96069695,3089.0,3088.7,0.00080768]
[1768010122181,0.96069695,3089.0,3087.9,4.22816378]
[1768010122370,1.39671149,3088.9,3088.0,0.98975516]
[1768010122565,0.96069695,3088.8,3088.0,0.98975516]
[1768010122965,0.43601454,3088.9,3088.2,0.98975516]
[1768010123168,0.25580768,3089.1,3088.3,1.02213543]
[1768010123376,0.00080768,3089.1,3088.3,1.02213543]
[1768010123563,0.00080768,3089.1,3088.3,0.98975516]
[1768010125681,0.00080768,3089.1,3088.4,0.98975516]
[1768010126066,0.001,3088.7,3088.4,0.98975516]
[1768010126460,0.001,3088.7,3088.3,0.002]
[1768010126659,0.001,3088.7,3088.3,0.99175516]
[1768010127082,0.001,3088.7,3088.3,0.002]
[1768010132564,0.96169695,3088.7,3088.3,0.002]
[1768010133864,0.95969695,3088.7,3088.3,0.002]
[1768010137867,6.6374824,3089.1,3088.3,0.002]
[1768010138068,0.76178626,3089.0,3088.3,0.002]
[1768010138267,1.74216645,3089.0,3088.3,0.002]
[1768010138500,0.001,3088.7,3088.3,0.94628656]
[1768010149302,0.001,3088.7,3088.3,0.002]
[1768010150113,0.001,3088.7,3088.6,0.002]
[1768010163115,0.001,3088.7,3088.6,0.91546313]
[1768010177215,0.00080768,3089.1,3088.7,0.91346313]
[1768010178522,0.00080768,3089.1,3088.7,4.15099026]
[1768010178722,0.00080768,3089.1,3088.8,0.91346313]
[1768010182339,0.00080768,3089.1,3088.9,0.91346313]
[1768010186042,0.00280768,3089.1,3088.9,0.91346313]
[1768010190851,0.00280768,3089.1,3088.6,0.002]
[1768010197772,0.002,3088.8,3088.6,0.002]
[1768010197974,0.00280768,3089.1,3088.6,0.002]
[1768010207664,0.97987682,3089.1,3088.6,0.002]
[1768010207870,0.00280768,3089.1,3088.6,0.002]
[1768010209868,0.002,3088.8,3088.6,0.96371514]
[1768010210199,0.00280768,3089.1,3088.8,0.96171514]
[1768010219230,0.00280768,3089.1,3088.6,0.96371514]
[1768010220330,0.00280768,3089.1,3088.7,0.96171514]
[1768010221430,0.002,3088.8,3088.7,0.96171514]
[1768010222202,0.00280768,3089.1,3088.8,0.96171514]
[1768010226033,0.00280768,3089.1,3088.9,0.97012958]
[1768010226222,0.00280768,3089.1,3089.0,0.97012958]
[1768010235154,0.000806,3089.4,3089.0,0.97012958]
[1768010235360,0.00080632,3090.0,3089.3,0.97012958]
[1768010237161,0.00080632,3090.0,3089.3,4.20709086]
[1768010239728,0.00080632,3090.0,3089.4,0.97012958]
[1768010240661,0.00080632,3090.0,3089.5,0.97012958]
[1768010242471,0.00080632,3090.0,3089.5,4.20688284]
[1768010244090,0.00080632,3090.0,3089.6,0.97012958]
[1768010244801,0.002,3089.7,3089.6,0.97012958]
[1768010251406,0.002,3089.7,3089.6,4.20679452]
[1768010251578,0.002,3089.7,3089.6,0.97012958]
[1768010253508,0.00280632,3090.0,3089.6,0.97012958]
[1768010253809,0.00280632,3090.0,3089.6,4.20676296]
[1768010255281,0.00280632,3090.0,3089.7,0.98635439]
[1768010257840,0.00280632,3090.0,3089.5,4.22307669]
[1768010259043,0.00280632,3090.0,3089.6,0.98635439]
[1768010267532,0.00280632,3090.0,3089.6,4.22301369]
[1768010268745,0.002,3089.7,3089.6,0.98635439]
[1768010269057,0.00280632,3090.0,3089.6,4.22301729]
[1768010271658,0.00280632,3090.0,3089.6,0.98635439]
[1768010275268,0.98282374,3090.0,3089.4,0.03236874]
[1768010275434,0.98001742,3089.9,3089.0,4.22654331]
[1768010275639,0.98001742,3089.9,3089.1,3.23718079]
[1768010275968,0.98001742,3089.9,3089.2,3.23707048]
[1768010276335,0.98001742,3089.9,3089.1,4.22568089]
[1768010280083,0.98001742,3089.9,3089.5,0.001]
[1768010280583,0.002,3089.7,3089.5,0.001]
[1768010285690,0.002,3089.7,3089.5,0.90397103]
[1768010289490,0.002,3089.7,3089.5,0.001]
[1768010290692,0.92086342,3089.7,3089.1,0.255]
[1768010290991,0.92086342,3089.7,3089.0,0.00080608]
[1768010290992,0.92086342,3089.7,3089.0,0.25580608]
[1768010291772,0.92086342,3089.7,3089.0,1.15877711]
[1768010293057,0.92086342,3089.7,3089.0,0.00080608]
[1768010303235,0.92086342,3089.7,3089.3,0.001]
[1768010340757,0.002,3089.7,3089.3,0.97689696]
[1768010373922,0.002,3089.7,3089.4,0.91520083]
[1768010374261,0.002,3089.7,3089.3,0.001]
[1768010374444,0.002,3089.7,3089.4,0.91520083]
[1768010388968,0.002,3089.7,3089.3,0.001]
[1768010399652,0.002,3089.7,3089.3,0.98678744]
[1768010400297,0.002,3089.7,3089.4,0.98578744]
[1768010402895,0.002,3089.7,3089.3,0.001]
[1768010406264,0.002,3089.7,3089.3,0.93605123]
[1768010417600,0.002,3089.7,3089.4,0.93505123]
[1768010419805,0.002,3089.7,3089.4,4.1719055]
[1768010420007,0.002,3089.7,3089.5,0.93505123]
[1768010425511,0.002,3089.7,3089.3,0.93605123]
[1768010425683,0.002,3089.7,3089.4,0.21596515]
[1768010427418,0.002,3089.7,3089.4,3.45282089]
[1768010429513,0.002,3089.7,3089.4,4.38787212]
[1768010430618,0.002,3089.7,3089.5,0.93505123]
[1768010432815,0.002,3089.7,3089.6,0.93505123]
[1768010437019,0.002,3089.7,3089.6,4.17171617]
[1768010439300,0.002,3090.4,3089.7,0.94151763]
[1768010439987,0.002,3090.4,3089.7,0.97388323]
[1768010440182,0.002,3090.4,3089.7,4.17805889]
[1768010440388,0.96002025,3090.4,3089.6,0.0008064]
[1768010440588,0.002,3090.4,3089.6,0.94232403]
[1768010440790,0.96002025,3090.4,3089.6,4.17891277]
[1768010444098,0.96002025,3090.4,3089.6,0.94232403]
[1768010444614,0.96002025,3090.4,3089.6,4.17894666]
[1768010448993,0.96002025,3090.4,3089.6,3.23742903]
[1768010449721,0.96002025,3090.4,3089.6,4.17894666]
[1768010451434,0.96002025,3090.4,3089.6,0.94232403]
[1768010451725,0.96002025,3090.4,3089.6,4.17897721]
[1768010452128,0.002,3090.1,3089.6,4.17897721]
[1768010454608,0.002,3090.1,3089.7,0.95346662]
[1768010460343,0.002,3090.1,3089.7,4.19000264]
[1768010462441,0.002,3090.1,3089.8,0.95346662]
[1768010463743,0.002,3090.1,3089.9,0.001]
[1768010464549,0.002,3090.1,3089.9,0.98732277]
[1768010471161,0.002,3090.1,3089.9,0.001]
[1768010520524,0.002,3090.1,3089.9,0.92927687]
[1768010520714,0.002,3090.4,3089.9,0.92927687]
[1768010523822,0.98662464,3090.4,3089.9,0.001]
[1768010528811,0.002,3090.4,3089.9,0.001]
[1768010528999,0.002,3090.4,3089.9,0.94009885]
[1768010530317,0.002,3090.4,3090.0,0.9714613]
[1768010530829,0.002,3090.4,3090.0,0.93909885]
[1768010531024,0.002,3090.4,3090.2,0.93909885]
[1768010532629,0.002,3090.6,3090.3,0.93909885]
[1768010534412,0.002,3090.6,3090.1,0.12945842]
[1768010534834,0.98662464,3090.6,3090.1,0.255]
[1768010539638,0.98662464,3090.6,3089.9,0.001]
[1768010543746,0.002,3090.3,3089.9,0.001]
[1768010546541,0.002,3090.3,3089.9,0.94009885]
[1768010551728,0.002,3090.3,3089.9,1.06956356]
[1768010555347,0.002,3090.3,3090.2,0.001]
[1768010557447,0.002,3090.6,3090.3,0.94799583]
[1768010579864,0.002,3090.6,3090.4,0.99126404]
[1768010580568,0.002,3090.9,3090.4,0.99126404]
[1768010582542,0.002,3090.9,3090.3,3.23674674]
[1768010582743,0.002,3090.9,3090.4,3.23582684]
[1768010583274,0.002,3090.9,3090.3,4.22801412]
[1768010583759,0.002,3090.9,3090.4,0.91315878]
[1768010588570,0.98791287,3090.9,3090.3,3.23677244]
[1768010588772,0.002,3090.9,3090.4,3.23580694]
[1768010589073,0.002,3090.9,3090.3,3.23670517]
[1768010589369,0.002,3090.9,3090.4,3.23582436]
[1768010589673,0.002,3090.9,3090.5,0.91315878]
[1768010590882,0.002,3090.9,3090.3,4.14993298]
[1768010591181,0.002,3090.9,3090.7,0.001]
[1768010592284,0.98791287,3090.9,3090.7,0.001]
[1768010592483,0.002,3090.9,3090.7,0.91415878]
[1768010592696,0.002,3090.9,3090.7,0.001]
[1768010593266,0.002,3090.9,3090.7,0.91415878]
[1768010594563,0.002,3090.9,3090.7,0.001]
[1768010594966,0.98791287,3090.9,3090.7,0.001]
[1768010595266,0.002,3090.9,3090.5,3.23570333]
[1768010595603,0.98791287,3090.9,3090.4,3.23582707]
[1768010595762,0.002,3090.9,3090.4,3.23582707]
[1768010595964,0.002,3090.9,3090.4,6.50401241]
[1768010596200,0.002,3090.9,3090.4,4.14898585]
[1768010597098,0.002,3090.9,3090.4,0.254]
[1768010597713,0.002,3090.9,3090.4,1.16715878]
[1768010598203,0.002,3091.3,3090.6,0.00080544]
[1768010598373,0.98791287,3091.3,3090.6,0.00080544]
[1768010599305,0.98591287,3091.2,3090.6,0.00080544]
[1768010602006,0.002,3091.3,3090.6,0.91396422]
[1768010602519,0.002,3091.3,3090.8,0.91315878]
[1768010603009,0.002,3090.9,3090.8,0.91315878]
[1768010603387,0.002,3091.2,3090.8,0.91315878]
[1768010604113,0.002,3091.2,3090.9,0.91315878]
[1768010607324,0.002,3091.2,3090.7,1.16815878]
[1768010607817,0.002,3091.2,3090.7,0.001]
[1768010608322,0.002,3091.2,3090.7,0.91415878]
[1768010608819,0.98791287,3091.2,3090.7,0.001]
[1768010609887,0.002,3091.2,3090.7,0.001]
[1768010610216,0.002,3091.2,3090.7,0.91415878]
[1768010610449,0.002,3091.2,3090.7,0.9465139]
[1768010610723,0.002,3091.2,3090.7,0.91415878]
[1768010612222,0.002,3091.2,3090.9,0.91315878]
[1768010614820,0.002,3091.2,3090.8,4.48795514]
[1768010615521,0.002,3091.2,3090.8,0.254]
[1768010616105,0.002,3091.2,3090.8,1.25254684]
[1768010617126,0.002,3091.2,3090.8,4.48795248]
[1768010617294,0.002,3091.2,3090.8,1.25254684]
[1768010617891,4.31009748,3091.2,3090.7,0.001]
[1768010618097,0.91285874,3091.1,3090.6,0.00080544]
[1768010623337,0.13222993,3091.2,3090.6,0.00080544]
[1768010624626,0.13222993,3091.2,3090.6,0.99935228]
[1768010625335,1.04508867,3091.2,3090.6,0.00080544]
[1768010625835,0.13222993,3091.2,3090.6,0.99935228]
[1768010626039,0.13222993,3091.2,3090.7,0.03235512]
[1768010626208,0.002,3091.2,3090.9,0.001]
[1768010627633,0.91485874,3091.2,3090.9,0.001]
[1768010627796,1.35543,3091.2,3090.9,0.001]
[1768010628934,0.91285874,3091.1,3090.9,0.001]
[1768010629241,0.91285874,3091.1,3090.6,0.00080544]
[1768010631127,0.44257126,3091.2,3090.6,0.00080544]
[1768010631443,1.43506111,3091.2,3090.6,0.00080544]
[1768010631643,0.99248985,3091.1,3090.6,0.00080544]
[1768010634649,1.43506111,3091.2,3090.6,0.00080544]
[1768010634818,0.99248985,3091.1,3090.6,0.00080544]
[1768010637938,0.99248985,3091.1,3090.9,0.001]
[1768010638136,0.99248985,3091.1,3090.6,0.00080544]
[1768010638336,0.44257126,3091.2,3090.6,0.00080544]
[1768010638649,1.43506111,3091.2,3090.6,0.00080544]
[1768010638856,0.99248985,3091.1,3090.6,0.00080544]
[1768010640055,1.43506111,3091.2,3090.6,0.00080544]
[1768010640254,0.46720102,3091.1,3090.6,0.00080544]
[1768010641326,0.99448985,3091.2,3090.6,0.00080544]
[1768010641626,0.002,3091.2,3090.6,0.90562794]
[1768010648158,0.002,3091.2,3090.7,0.03224431]
[1768010648367,0.002,3091.2,3090.7,1.01520322]
[1768010648663,0.002,3091.2,3090.7,0.98295891]
[1768010648968,0.002,3091.2,3090.6,0.00080544]
[1768010649171,0.002,3091.2,3090.6,0.98376435]
[1768010649544,0.002,3091.2,3090.9,0.001]
[1768010651362,0.42538369,3091.2,3090.9,0.001]
[1768010652369,1.4204107,3091.2,3090.9,0.001]
[1768010652657,0.99502701,3091.1,3090.6,0.00080544]
[1768010661369,0.99502701,3091.1,3090.9,0.001]
[1768010661560,0.42538369,3091.2,3090.6,0.00080544]
[1768010661759,0.002,3090.9,3090.6,0.98376435]
[1768010669085,0.002,3090.9,3090.6,0.00080544]
[1768010670092,0.002,3090.9,3090.6,0.98376435]
[1768010674281,0.002,3090.9,3090.7,0.98749844]
[1768010698902,0.002,3090.9,3090.6,0.00080544]
[1768010699192,0.002,3090.9,3090.6,0.91730402]
[1768010701700,0.94749776,3090.9,3090.6,0.00080544]
[1768010702577,0.002,3090.9,3090.6,0.00080544]
[1768010747506,0.002,3090.9,3090.6,0.91918489]
[1768010748444,0.002,3090.9,3090.6,0.00080544]
[1768010763960,3.39568706,3090.8,3090.3,0.00084242]
[1768010764257,0.33976871,3090.7,3090.3,0.00084242]
[1768010766857,0.33976871,3090.7,3090.6,0.001]
[1768010767061,0.33976871,3090.7,3090.3,0.00084242]
[1768010770044,0.33976871,3090.7,3090.3,0.9893888]
[1768010770963,0.002,3090.9,3090.3,0.9893888]
[1768010771666,0.98967984,3090.9,3090.3,0.00084242]
[1768010772935,0.002,3090.9,3090.3,0.9893888]
[1768010774789,0.002,3090.9,3090.5,0.98854638]
[1768010778579,0.002,3090.9,3090.6,0.001]
[1768010784902,0.002,3090.9,3090.6,0.98954638]
[1768010789672,0.002,3090.9,3090.6,0.001]
[1768010812948,0.002,3090.9,3090.6,0.96544817]
[1768010813453,0.002,3090.9,3090.6,0.001]
[1768010816355,0.002,3090.9,3090.6,0.96544817]
[1768010817326,0.002,3090.9,3090.6,0.001]
[1768010818126,0.002,3090.9,3090.6,0.96544817]
[1768010824669,0.002,3090.9,3090.6,0.001]
[1768010851751,0.35147334,3090.9,3090.6,0.001]
[1768010852544,0.002,3090.9,3090.6,0.001]
[1768010856955,0.976711,3090.9,3090.6,0.001]
[1768010858260,0.976711,3090.9,3090.3,0.00084242]
[1768010859449,0.002,3090.9,3090.3,0.00084242]
[1768010859858,0.002,3090.9,3090.3,0.97100987]
[1768010862843,1.11179153,3090.9,3090.3,0.97100987]
[1768010863050,1.11179153,3090.9,3090.6,0.001]
[1768010863251,0.002,3090.6,3090.3,0.97100987]
[1768010868565,0.002,3090.6,3090.3,0.00084242]
[1768010868751,0.976711,3090.6,3090.3,0.00084242]
[1768010869451,0.002,3090.6,3090.3,0.97100987]
[1768010891093,0.002,3090.6,3090.3,0.00084242]
[1768010892788,0.43938674,3090.6,3090.3,0.00084242]
[1768010893191,0.43938674,3090.6,3090.2,0.001]
[1768010895786,0.97585416,3090.5,3090.2,0.001]
[1768010897896,0.43938674,3090.6,3090.2,0.001]
[1768010898198,0.43938674,3090.6,3090.5,0.001]
[1768010898367,0.43938674,3090.6,3090.2,0.001]
[1768010898968,0.43938674,3090.6,3090.2,0.91799829]
[1768010899686,0.002,3090.6,3090.2,0.91799829]
[1768010905707,0.002,3090.6,3090.2,0.001]
[1768010909014,0.002,3090.6,3090.2,0.91799829]
[1768010909910,0.002,3090.6,3090.5,0.001]
[1768010910112,0.002,3090.6,3090.2,0.91799829]
[1768010921821,0.002,3090.6,3090.5,0.001]
[1768010922121,0.002,3090.6,3090.2,0.9464467]
[1768010926525,0.93523756,3090.6,3090.2,0.001]
[1768010928224,0.002,3090.6,3090.2,0.001]
[1768010933479,0.002,3090.6,3090.5,0.001]
[1768010935042,0.002,3090.6,3090.2,0.001]
[1768010944956,0.002,3090.6,3090.5,0.001]
[1768010945157,0.002,3090.6,3090.2,0.001]
[1768010948573,0.99250151,3090.6,3090.2,0.001]
[1768010949374,0.002,3090.6,3090.2,0.001]
[1768010949669,0.002,3090.6,3090.2,0.9695746]
[1768010956380,0.002,3090.6,3090.5,0.001]
[1768010958646,0.99250151,3090.6,3090.5,0.001]
[1768010958846,1.18894198,3090.6,3090.5,0.001]
[1768010959571,0.19844047,3090.6,3090.5,0.001]
[1768010959783,0.002,3090.6,3090.5,0.001]
[1768011000532,0.002,3090.6,3090.5,0.95450151]
[1768011001366,0.9238662,3090.5,3090.1,0.12946596]
[1768011001568,3.3969246,3090.2,3089.6,0.0008064]
[1768011001732,0.43207908,3090.1,3089.6,0.0008064]
[1768011002232,0.95350151,3090.0,3089.6,0.0008064]
[1768011004164,0.98906288,3089.9,3089.6,0.0008064]
[1768011006384,0.95350151,3090.0,3089.6,0.0008064]
[1768011012789,0.43207908,3090.1,3089.6,0.0008064]
[1768011012986,1.40331275,3090.1,3089.6,0.0008064]
[1768011013301,0.98906288,3090.0,3089.6,0.0008064]
[1768011013894,0.43207908,3090.1,3089.9,0.001]
[1768011014083,0.255,3090.0,3089.6,0.0008064]
[1768011014395,1.42114196,3090.1,3089.6,0.0008064]
[1768011014600,1.43697267,3090.0,3089.6,0.0008064]
[1768011021526,1.43697267,3090.0,3089.6,0.98558254]
[1768011025412,1.43697267,3090.0,3089.9,0.001]
[1768011025611,1.43697267,3090.0,3089.6,0.0008064]
[1768011031606,0.98906288,3089.9,3089.6,0.0008064]
[1768011032187,1.24406288,3089.9,3089.6,0.0008064]
[1768011032384,1.71315698,3089.9,3089.6,0.0008064]
[1768011033111,0.7240941,3089.9,3089.6,0.0008064]
[1768011039927,0.96252826,3089.8,3089.0,0.25580608]
[1768011040096,0.96252826,3089.8,3089.0,1.49877677]
[1768011040627,0.96252826,3089.8,3089.1,0.98797069]
[1768011041123,0.255,3089.9,3089.1,0.98797069]
[1768011042132,3.49135118,3089.9,3089.1,0.98797069]
[1768011042451,4.45387944,3089.9,3089.1,0.98797069]
[1768011046737,1.21752826,3089.9,3089.1,0.98797069]
[1768011047244,0.255,3089.9,3089.1,0.98797069]
[1768011047427,0.0008064,3090.0,3089.2,0.98797069]
[1768011048847,0.0008064,3090.0,3089.5,0.98797069]
[1768011050249,0.0008064,3090.0,3089.4,0.001]
[1768011050454,0.94911191,3090.0,3089.4,0.001]
[1768011050751,0.0008064,3090.0,3089.4,0.98422009]
[1768011054853,0.94830551,3089.9,3089.4,0.001]
[1768011056944,0.0008064,3090.0,3089.4,0.98422009]
[1768011060162,0.002,3089.7,3089.4,0.98422009]
[1768011062561,0.002,3089.7,3089.4,0.001]
[1768011064839,0.002,3089.7,3089.5,0.92747618]
[1768011068875,0.0028064,3090.0,3089.6,0.92747618]
[1768011073443,0.002,3089.7,3089.6,0.92747618]
[1768011082053,0.002,3089.7,3089.4,0.001]
[1768011082054,0.002,3089.7,3089.4,0.92847618]
[1768011086582,0.002,3089.7,3089.4,0.001]
[1768011087086,0.002,3089.7,3089.4,0.92847618]
[1768011092293,0.0028064,3090.0,3089.4,0.92847618]
[1768011092969,0.0028064,3090.0,3089.6,0.92879669]
[1768011093169,0.93114314,3090.4,3089.7,0.92879669]
[1768011093371,0.93314314,3090.6,3089.7,0.92879669]
[1768011094581,0.002,3090.6,3089.8,0.92879669]
[1768011094780,0.002,3090.6,3089.9,0.92879669]
[1768011095090,0.93314314,3090.6,3089.9,0.92879669]
[1768011097363,0.002,3090.3,3089.9,0.92879669]
[1768011098995,0.002,3090.3,3089.7,0.92879669]
[1768011100686,0.002,3090.3,3089.7,4.16534674]
[1768011109109,0.002,3090.3,3090.0,0.001]
[1768011135640,0.00084242,3090.7,3090.2,4.33896664]
[1768011137442,0.00084242,3090.7,3090.2,7.57498942]
[1768011138615,0.00084242,3090.7,3090.2,4.33896664]
[1768011139822,0.00084242,3090.7,3090.2,7.5749746]
[1768011143848,0.002,3090.4,3090.2,7.5749746]
[1768011144043,0.00084242,3090.7,3090.2,7.5749746]
[1768011144249,0.00284242,3090.7,3090.2,7.5749746]
[1768011144855,0.00284242,3090.7,3090.2,4.17761741]
[1768011145064,0.00284242,3090.7,3090.2,3.23600796]
[1768011145422,0.00284242,3090.7,3090.1,3.4910927]
[1768011145964,0.00284242,3090.7,3090.2,3.23603389]
[1768011148748,0.00284242,3090.7,3090.3,0.94160945]
[1768011149457,0.00284242,3090.7,3090.2,3.23603389]
[1768011149656,0.00284242,3090.7,3090.2,6.47207039]
[1768011150983,0.00284242,3090.7,3090.3,0.94160945]
[1768011152749,0.00284242,3090.7,3090.2,6.47207039]
[1768011153073,0.00284242,3090.7,3090.2,7.39337297]
[1768011156185,0.00284242,3090.7,3090.5,0.001]
[1768011176907,0.002,3090.9,3090.5,0.001]
[1768011179309,0.002,3090.6,3090.5,0.001]
[1768011179488,0.002,3090.9,3090.5,0.001]
[1768011183608,0.002,3090.9,3090.6,1.18823665]
[1768011183909,0.002,3091.2,3090.6,1.18904217]
[1768011186209,0.002,3091.3,3090.7,6.47102598]
[1768011186408,0.002,3091.3,3090.7,7.40526263]
[1768011190730,0.002,3091.6,3090.8,0.93423665]
[1768011191284,0.002,3091.6,3090.9,0.93523665]
[1768011192514,0.002,3091.6,3091.0,3.23519896]
[1768011193625,0.9691727,3091.6,3091.0,3.23519896]
[1768011194629,0.9691727,3091.6,3090.9,0.001]
[1768011196434,0.9691727,3091.6,3090.9,0.93523665]
[1768011198633,0.9691727,3091.6,3091.0,3.23519896]
[1768011198930,0.002,3091.6,3091.0,3.23519896]
[1768011202923,0.002,3091.3,3091.0,3.23519896]
[1768011204747,0.9691727,3091.6,3091.0,3.23519896]
[1768011205041,0.9691727,3091.6,3090.9,4.17049975]
[1768011210553,0.9691727,3091.6,3090.9,7.56425422]
[1768011214749,0.9691727,3091.6,3091.2,0.001]
[1768011215244,0.002,3091.3,3091.2,0.001]
[1768011215624,0.9691727,3091.6,3091.2,0.001]
[1768011226756,0.002,3091.3,3091.2,0.001]
[1768011261890,0.002,3091.6,3091.2,0.001]
[1768011273419,0.002,3091.3,3091.2,0.001]
[1768011273716,0.91383216,3091.6,3091.2,0.001]
[1768011276127,0.002,3091.6,3091.2,0.001]
[1768011285127,0.002,3091.3,3091.2,0.001]
[1768011285333,0.91383216,3091.6,3091.2,0.001]
[1768011289136,0.002,3091.6,3091.2,0.001]
[1768011296611,0.002,3091.3,3091.2,0.001]
[1768011301851,0.99197107,3091.3,3091.2,0.001]
[1768011305360,0.99197107,3091.3,3090.9,0.001]
[1768011306963,0.002,3091.3,3090.9,0.001]
[1768011309843,0.91539135,3091.3,3090.9,0.001]
[1768011310037,0.91339135,3091.2,3090.6,0.00080552]
[1768011310862,0.91339135,3091.0,3090.6,0.00080552]
[1768011311256,0.91339135,3090.9,3090.6,0.00080552]
[1768011318871,0.91339135,3090.9,3090.3,0.00084326]
[1768011318872,0.91339135,3090.8,3090.3,0.00084326]
[1768011319072,0.91339135,3090.6,3090.0,0.001]
[1768011321274,0.91339135,3090.5,3090.0,0.001]
[1768011324480,0.254,3090.6,3090.0,0.001]
[1768011324777,0.254,3090.6,3090.0,0.91208699]
[1768011329481,0.254,3090.6,3090.0,0.001]
[1768011329677,0.46792797,3090.6,3090.0,0.001]
[1768011329980,0.21392797,3090.6,3090.0,0.001]
[1768011330148,0.91423461,3090.7,3090.0,0.001]
[1768011331454,0.91423461,3090.7,3090.3,0.001]
[1768011332064,0.002,3090.6,3090.3,0.001]
[1768011333672,0.9588361,3090.6,3090.3,0.001]
[1768011334484,0.002,3090.6,3090.3,0.001]
[1768011340197,0.9588361,3090.6,3090.3,0.001]
[1768011344098,0.002,3090.6,3090.3,0.001]
[1768011352506,0.002,3090.6,3090.3,0.94728012]
[1768011355518,0.002,3090.6,3090.3,0.001]
[1768011360417,1.3713207,3090.6,3090.3,0.001]
[1768011360799,0.9273583,3090.5,3090.0,0.001]
[1768011367312,0.9273583,3090.5,3090.3,0.001]
[1768011367519,0.93044683,3090.3,3090.0,0.001]
[1768011368626,0.92844683,3090.2,3090.0,0.001]
[1768011368939,0.002,3090.3,3090.0,0.001]
[1768011369144,0.32578684,3090.3,3090.0,0.001]
[1768011374737,0.002,3090.3,3090.0,0.001]
[1768011411117,0.90661975,3090.3,3090.0,0.001]
[1768011419731,0.002,3090.3,3090.0,0.001]
[1768011421925,0.90661975,3090.3,3090.0,0.001]
[1768011423124,0.002,3090.3,3090.0,0.001]
[1768011423329,0.002,3090.3,3090.0,0.98895166]
[1768011426931,0.002,3090.3,3090.1,0.98795166]
[1768011430537,0.002,3090.3,3090.2,0.98795166]
[1768011431507,0.002,3090.3,3090.0,3.23721177]
[1768011431708,0.002,3090.3,3090.0,4.22516343]
[1768011432929,0.002,3090.3,3090.1,0.98795166]
[1768011439950,0.002,3090.6,3090.1,4.22408062]
[1768011441748,0.002,3090.6,3090.1,0.98795166]
[1768011445519,0.002,3090.6,3090.2,0.98795166]
[1768011446257,0.002,3090.6,3090.0,4.22514962]
[1768011447955,0.002,3090.6,3090.1,0.98795166]
[1768011449459,0.002,3090.6,3090.0,3.23719796]
[1768011449860,0.002,3090.6,3090.0,4.22514962]
[1768011450732,0.002,3090.6,3090.3,0.001]
[1768011483267,0.97145116,3090.6,3090.3,0.001]
[1768011487270,0.002,3090.6,3090.3,0.001]
[1768011525596,0.255,3091.1,3090.3,0.001]
[1768011525597,0.002,3091.6,3091.3,0.91563735]
[1768011525740,0.002,3091.6,3091.3,0.255]
[1768011527168,0.002,3091.6,3091.3,1.17063735]
[1768011527671,0.002,3091.6,3091.3,0.255]
[1768011528351,0.002,3091.6,3091.2,0.254]
[1768011532794,0.002,3091.3,3091.2,0.254]
[1768011534894,0.002,3091.3,3091.1,1.16963735]
[1768011536693,0.002,3091.3,3091.1,0.254]
[1768011537090,0.002,3091.3,3091.1,1.18226949]
[1768011537301,0.002,3091.6,3091.2,0.92826949]
[1768011537597,7.92e-06,3091.9,3091.2,0.92826949]
[1768011539319,0.90483243,3091.9,3091.1,0.3834044]
[1768011539874,7.92e-06,3091.9,3091.2,0.92826949]
[1768011540921,0.90482451,3091.7,3090.7,3.86]
[1768011541075,1.93238165,3091.2,3090.7,3.86]
[1768011541275,1.00411216,3091.2,3090.7,3.86]
[1768011543081,0.94871388,3091.1,3090.6,0.0008056]
[1768011543287,0.94871388,3090.9,3090.6,0.0008056]
[1768011547115,0.94871388,3091.1,3090.6,0.0008056]
[1768011552117,0.09928765,3091.2,3090.6,0.94787339]
[1768011556209,0.09928765,3091.2,3090.9,0.001]
[1768011556599,0.95071388,3091.3,3090.9,0.001]
[1768011559037,0.002,3091.3,3090.9,0.001]
[1768011567243,0.002,3091.3,3090.9,0.94806779]
[1768011570162,0.002,3091.3,3090.9,0.001]
[1768011578855,0.95021654,3091.2,3090.9,0.001]
[1768011581162,0.002,3091.3,3090.9,0.001]
[1768011598274,0.96513612,3091.3,3090.9,0.001]
[1768011599447,0.002,3091.3,3090.9,0.001]
[1768011600271,0.96513612,3091.3,3090.9,0.001]
[1768011600640,4.20003917,3091.3,3090.9,0.001]
[1768011600975,1.38314004,3091.2,3090.6,0.2548056]
[1768011601140,0.42000392,3091.2,3090.6,0.98102583]
[1768011601849,0.002,3091.3,3090.6,0.98102583]
[1768011613285,0.002,3091.3,3090.9,0.001]
[1768011613493,0.98153004,3091.3,3090.9,0.001]
[1768011613700,0.002,3091.0,3090.9,0.001]
[1768011639021,0.92999409,3091.0,3090.9,0.001]
[1768011639320,0.92999409,3091.0,3090.6,0.0008056]
[1768011639489,0.002,3091.0,3090.6,0.0008056]
[1768011639891,0.002,3091.0,3090.6,0.99476728]